[Event "Schack-SM 2023: Veteran-SM 50+"]
[Site "Helsingborg Arena, Mellersta Stenbocksgatan 14, Helsingborg, Sweden"]
[Date "2023.07.03"]
[Round "3.1"]
[White "Nilsson, Patrik 1968"]
[Black "Wahlund, Max"]
[Result "0-1"]
[TimeControl "90 minutes for 40 moves + 30 minutes for the rest of games + 30 seconds per move from move one."]
[BlackTitle "CM"]
[WhiteElo "1931"]
[BlackElo "2002"]

1. e4 {[%clk 01:30:52]} {[%emt 00:00:07]} d6 {[%clk 01:30:55]} {[%emt
00:00:06]} 2. d4 {[%clk 01:31:05]} {[%emt 00:00:16]} Nf6 {[%clk 01:31:22]}
{[%emt 00:00:04]} 3. Nc3 {[%clk 01:31:10]} {[%emt 00:00:25]} Nbd7 {[%clk
01:31:44]} {[%emt 00:00:09]} 4. Nf3 {[%clk 01:30:28]} {[%emt 00:01:11]} e5
{[%clk 01:31:32]} {[%emt 00:00:42]} 5. Bc4 {[%clk 01:30:34]} {[%emt 00:00:24]}
Be7 {[%clk 01:31:36]} {[%emt 00:00:25]} 6. O-O {[%clk 01:30:22]} {[%emt
00:00:42]} c6 {[%clk 01:31:59]} {[%emt 00:00:07]} 7. a4 {[%clk 01:30:13]}
{[%emt 00:00:40]} a5 {[%clk 01:32:12]} {[%emt 00:00:17]} 8. Re1 {[%clk
01:29:45]} {[%emt 00:00:57]} Qc7 {[%clk 01:32:34]} {[%emt 00:00:10]} 9. Bb3
{[%clk 01:24:59]} {[%emt 00:05:15]} h6 {[%clk 01:32:31]} {[%emt 00:00:33]} 10.
Qd3 {[%clk 01:21:19]} {[%emt 00:04:08]} Nf8 {[%clk 01:23:03]} {[%emt 00:10:00]}
11. dxe5 {[%clk 01:15:20]} {[%emt 00:06:29]} dxe5 {[%clk 01:22:55]} {[%emt
00:00:38]} 12. Be3 {[%clk 01:10:18]} {[%emt 00:05:31]} Ne6 {[%clk 01:18:13]}
{[%emt 00:05:14]} 13. Rad1 {[%clk 01:05:53]} {[%emt 00:04:53]} Ng4 {[%clk
01:06:58]} 14. Qc4 {[%clk 00:56:26]} {[%emt 00:21:42]} Nxe3 {[%clk 00:59:36]}
{[%emt 00:07:53]} 15. Rxe3 {[%clk 00:56:44]} {[%emt 00:00:11]} O-O {[%clk
00:59:55]} {[%emt 00:00:11]} 16. Ree1 {[%clk 00:52:54]} {[%emt 00:04:19]} b6
{[%clk 00:58:24]} {[%emt 00:02:03]} 17. Qf1 {[%clk 00:48:10]} {[%emt 00:05:12]}
Bb4 {[%clk 00:55:00]} {[%emt 00:03:56]} 18. Bxe6 {[%clk 00:42:10]} {[%emt
00:06:29]} Bxe6 {[%clk 00:54:57]} {[%emt 00:00:34]} 19. Re3 {[%clk 00:37:28]}
{[%emt 00:05:10]} Rad8 {[%clk 00:53:23]} {[%emt 00:02:06]} 20. Rxd8 {[%clk
00:35:19]} {[%emt 00:02:39]} Rxd8 {[%clk 00:53:35]} {[%emt 00:00:18]} 21. Rd3
{[%clk 00:35:04]} {[%emt 00:00:44]} f6 {[%clk 00:51:39]} {[%emt 00:02:26]} 22.
Qd1 {[%clk 00:32:57]} {[%emt 00:02:36]} Rxd3 {[%clk 00:50:04]} {[%emt
00:02:06]} 23. Qxd3 {[%clk 00:32:53]} {[%emt 00:00:34]} Qd7 {[%clk 00:50:01]}
{[%emt 00:00:34]} 24. Qxd7 {[%clk 00:31:15]} {[%emt 00:02:08]} Bxd7 {[%clk
00:50:29]} {[%emt 00:00:02]} 25. Nb1 {[%clk 00:30:12]} {[%emt 00:01:32]} Kf7
{[%clk 00:46:13]} {[%emt 00:04:47]} 26. Nbd2 {[%clk 00:24:59]} {[%emt
00:05:42]} Be6 {[%clk 00:44:38]} {[%emt 00:02:06]} 27. Kf1 {[%clk 00:22:47]}
{[%emt 00:02:39]} g5 {[%clk 00:44:49]} {[%emt 00:00:22]} 28. c3 {[%clk
00:22:15]} {[%emt 00:01:02]} Bc5 {[%clk 00:44:49]} {[%emt 00:00:30]} 29. Ke2
{[%clk 00:21:18]} {[%emt 00:01:25]} b5 {[%clk 00:45:01]} {[%emt 00:00:20]} 30.
axb5 {[%clk 00:19:47]} {[%emt 00:02:02]} cxb5 {[%clk 00:45:22]} {[%emt
00:00:08]} 31. Ne1 {[%clk 00:19:32]} {[%emt 00:00:44]} h5 {[%clk 00:42:50]}
{[%emt 00:03:02]} 32. Nd3 {[%clk 00:18:34]} {[%emt 00:01:28]} Bb6 {[%clk
00:42:50]} {[%emt 00:00:31]} 33. Ne1 {[%clk 00:17:15]} {[%emt 00:01:48]} Ke7
{[%clk 00:41:19]} {[%emt 00:02:02]} 34. Nc2 {[%clk 00:16:24]} {[%emt 00:01:20]}
Kd6 {[%clk 00:37:20]} {[%emt 00:04:30]} 35. Ne1 {[%clk 00:13:12]} {[%emt
00:03:41]} Bc8 {[%clk 00:36:00]} {[%emt 00:01:51]} 36. Nc2 {[%clk 00:12:09]}
{[%emt 00:01:33]} Ba6 {[%clk 00:34:24]} {[%emt 00:02:06]} 37. Ke1 {[%clk
00:07:43]} {[%emt 00:04:55]} Ke6 {[%clk 00:31:24]} {[%emt 00:03:31]} 38. Nf1
{[%clk 00:05:22]} {[%emt 00:02:49]} f5 {[%clk 00:25:22]} {[%emt 00:06:34]} 39.
exf5+ {[%emt 00:01:25]} Kxf5 {[%clk 00:25:48]} {[%emt 00:00:04]} 40. Ng3+
{[%clk 00:04:21]} {[%emt 00:00:36]} Kg6 {[%clk 00:25:25]} {[%emt 00:00:53]} 41.
Ne4 {[%clk 00:25:14]} {[%emt 00:09:36]} b4 {[%clk 00:50:49]} {[%emt 00:05:07]}
42. f3 {[%clk 00:22:12]} {[%emt 00:03:32]} g4 {[%clk 00:44:43]} {[%emt
00:06:35]} 43. cxb4 {[%clk 00:20:11]} {[%emt 00:02:32]} gxf3 {[%clk 00:44:22]}
{[%emt 00:00:51]} 44. gxf3 {[%clk 00:19:34]} {[%emt 00:01:06]} axb4 {[%clk
00:44:18]} {[%emt 00:00:34]} 45. Nd2 {[%clk 00:17:41]} {[%emt 00:02:23]} Bc5
{[%clk 00:43:43]} {[%emt 00:01:05]} 46. Nb3 {[%clk 00:15:55]} {[%emt 00:02:17]}
Bf8 {[%clk 00:43:06]} {[%emt 00:01:06]} 47. Kf2 {[%clk 00:14:33]} {[%emt
00:01:49]} Bc4 {[%clk 00:41:31]} {[%emt 00:02:10]} 48. Nd2 {[%clk 00:11:57]}
{[%emt 00:03:05]} Bd3 {[%clk 00:41:01]} {[%emt 00:00:59]} 49. Ne1 {[%clk
00:10:54]} {[%emt 00:01:34]} Bc5+ {[%clk 00:39:04]} {[%emt 00:02:26]} 50. Kg3
{[%clk 00:10:58]} {[%emt 00:00:26]} Bf5 {[%clk 00:30:26]} {[%emt 00:09:09]} 51.
Ng2 {[%clk 00:08:55]} {[%emt 00:02:33]} Kh6 {[%clk 00:28:14]} {[%emt 00:02:42]}
52. Nh4 {[%clk 00:07:27]} {[%emt 00:01:58]} Bc2 {[%clk 00:28:04]} {[%emt
00:00:39]} 53. Nc4 {[%clk 00:06:13]} {[%emt 00:01:45]} Bd4 {[%clk 00:18:07]}
{[%emt 00:10:27]} 54. Ng2 {[%clk 00:06:17]} {[%emt 00:00:26]} Bd3 {[%clk
00:17:16]} {[%emt 00:01:22]} 55. Nge3 {[%clk 00:06:10]} {[%emt 00:00:36]} Kg5
{[%clk 00:17:05]} {[%emt 00:00:40]} 56. h4+ {[%clk 00:05:07]} {[%emt 00:01:34]}
Kf6 {[%clk 00:15:49]} {[%emt 00:01:46]} 57. Nd5+ {[%clk 00:04:08]} {[%emt
00:01:29]} Ke6 {[%clk 00:16:06]} {[%emt 00:00:13]} 58. Nde3 {[%clk 00:03:39]}
{[%emt 00:00:59]} b3 {[%clk 00:15:05]} {[%emt 00:01:31]} 59. f4 {[%clk
00:03:07]} {[%emt 00:01:02]} e4 {[%clk 00:12:36]} {[%emt 00:02:58]} 60. f5+
{[%clk 00:03:04]} {[%emt 00:00:34]} Kd7 {[%clk 00:08:06]} {[%emt 00:05:00]} 61.
Kf4 {[%clk 00:02:56]} {[%emt 00:00:38]} Bf6 {[%clk 00:07:38]} {[%emt 00:00:58]}
62. Nd2 {[%clk 00:02:03]} {[%emt 00:01:22]} Bc2 {[%clk 00:07:38]} {[%emt
00:00:30]} 63. Nxe4 {[%clk 00:01:48]} {[%emt 00:00:45]} Bxb2 {[%clk 00:07:01]}
{[%emt 00:01:08]} 64. Nc5+ {[%clk 00:00:44]} {[%emt 00:01:35]} Kc6 {[%clk
00:06:43]} {[%emt 00:00:48]} 65. Na4 {[%clk 00:00:34]} {[%emt 00:00:40]} Bf6
{[%clk 00:05:58]} {[%emt 00:01:14]} 66. Nc4 {[%clk 00:00:45]} {[%emt 00:00:19]}
Kb5 {[%clk 00:05:09]} {[%emt 00:01:18]} 67. Nab2 {[%clk 00:00:50]} {[%emt
00:00:26]} Kc5 {[%clk 00:02:59]} {[%emt 00:02:40]} 68. Ne5 {[%clk 00:00:58]}
{[%emt 00:00:22]} Kd5 {[%clk 00:03:08]} {[%emt 00:00:21]} 69. Ned3 {[%clk
00:01:00]} {[%emt 00:00:28]} Bxh4 {[%clk 00:02:52]} {[%emt 00:00:46]} 70. Nb4+
{[%clk 00:00:54]} {[%emt 00:00:36]} Kd4 {[%clk 00:03:08]} {[%emt 00:00:13]} 71.
Nc6+ {[%clk 00:01:02]} {[%emt 00:00:23]} Kd5 {[%clk 00:01:56]} {[%emt
00:01:42]} 72. Ne5 {[%clk 00:00:41]} {[%emt 00:00:50]} Bf6 {[%clk 00:02:06]}
{[%emt 00:00:20]} 73. Ned3 {[%clk 00:00:51]} {[%emt 00:00:21]} h4 {[%clk
00:01:58]} {[%emt 00:00:38]} 74. Kg4 {[%clk 00:00:54]} {[%emt 00:00:27]} Ke4
{[%clk 00:01:40]} {[%emt 00:00:48]} 75. Nc5+ {[%clk 00:01:03]} {[%emt
00:00:21]} Ke3 {[%clk 00:01:57]} {[%emt 00:00:12]} 76. Nca4 {[%clk 00:01:06]}
{[%emt 00:00:28]} Kf2 {[%clk 00:02:10]} {[%emt 00:00:17]} 77. Nc4 {[%clk
00:01:07]} {[%emt 00:00:29]} h3 {[%clk 00:01:02]} {[%emt 00:01:39]} 78. Kxh3
{[%clk 00:01:08]} {[%emt 00:00:28]} Bxf5+ {[%clk 00:01:30]} {[%emt 00:00:02]}
79. Kh2 {[%clk 00:01:27]} {[%emt 00:00:11]} Bg5 {[%clk 00:01:37]} {[%emt
00:00:23]} 80. Nc3 {[%emt 00:00:48]} Bf4 81. Kh1 {[%clk 00:01:38]} {[%emt
00:00:13]} Bc2 {[%clk 00:00:39]} {[%emt 00:01:46]} 82. Nb2 {[%clk 00:01:41]}
{[%emt 00:00:28]} Be5 {[%clk 00:00:52]} {[%emt 00:00:17]} 83. Nba4 {[%clk
00:01:13]} {[%emt 00:00:58]} Kf1 {[%clk 00:01:10]} {[%emt 00:00:11]} 0-1

[Event "Schack-SM 2023: Sverigemastarklassen"]
[Site "Helsingborg Arena, Mellersta Stenbocksgatan 14, Helsingborg, Sweden"]
[Date "2023.07.02"]
[Round "2.5"]
[White "Blomqvist, Erik"]
[Black "Johansson, Linus"]
[Result "0-1"]
[TimeControl "90 minutes for 40 moves + 30 minutes for the rest of the game + 30 seconds per move from move one."]
[WhiteTitle "GM"]
[BlackTitle "IM"]
[WhiteElo "2500"]
[BlackElo "2466"]

1. e4 {[%clk 01:30:54]} {[%emt 00:00:04]} c5 {[%clk 01:30:56]} {[%emt
00:00:05]} 2. Nf3 {[%clk 01:31:15]} {[%emt 00:00:09]} Nc6 {[%clk 01:31:23]}
{[%emt 00:00:04]} 3. d4 {[%clk 01:31:32]} {[%emt 00:00:12]} cxd4 {[%clk
01:31:47]} {[%emt 00:00:06]} 4. Nxd4 {[%clk 01:31:56]} {[%emt 00:00:06]} Nf6
{[%clk 01:32:12]} {[%emt 00:00:05]} 5. Nc3 {[%clk 01:32:19]} {[%emt 00:00:07]}
e5 {[%clk 01:32:37]} {[%emt 00:00:05]} 6. Ndb5 {[%clk 01:32:42]} {[%emt
00:00:07]} d6 {[%clk 01:32:59]} {[%emt 00:00:09]} 7. Bg5 {[%clk 01:32:55]}
{[%emt 00:00:16]} a6 {[%clk 01:33:23]} {[%emt 00:00:07]} 8. Na3 {[%clk
01:33:17]} {[%emt 00:00:07]} b5 {[%clk 01:33:47]} {[%emt 00:00:06]} 9. Nab1
{[%clk 01:32:58]} {[%emt 00:00:49]} Be7 {[%clk 01:25:16]} {[%emt 00:09:01]} 10.
Bxf6 {[%clk 01:32:28]} {[%emt 00:01:00]} Bxf6 {[%clk 01:25:13]} {[%emt
00:00:34]} 11. a4 {[%clk 01:32:50]} {[%emt 00:00:08]} b4 {[%clk 01:22:12]}
{[%emt 00:03:31]} 12. Nd5 {[%clk 01:33:12]} {[%emt 00:00:07]} O-O {[%clk
00:54:43]} {[%emt 00:27:59]} 13. Bc4 {[%clk 01:33:00]} {[%emt 00:00:42]} g6
{[%clk 00:52:10]} {[%emt 00:03:04]} 14. O-O {[%clk 01:23:28]} {[%emt 00:10:02]}
Bg5 {[%clk 00:52:04]} {[%emt 00:00:35]} 15. c3 {[%clk 01:21:55]} {[%emt
00:02:03]} Na5 {[%clk 00:37:48]} {[%emt 00:14:46]} 16. Ba2 {[%clk 01:17:53]}
{[%emt 00:04:32]} b3 {[%clk 00:36:21]} {[%emt 00:01:58]} 17. Bxb3 {[%clk
01:18:18]} {[%emt 00:00:05]} Rb8 {[%clk 00:36:40]} {[%emt 00:00:11]} 18. Ra3
{[%clk 01:13:33]} {[%emt 00:05:15]} Bd7 {[%clk 00:34:13]} {[%emt 00:02:56]} 19.
f4 {[%clk 00:55:36]} {[%emt 00:18:28]} exf4 {[%clk 00:28:25]} {[%emt 00:06:18]}
20. Nd2 {[%clk 00:55:20]} {[%emt 00:00:46]} Rb7 {[%clk 00:25:20]} {[%emt
00:03:35]} 21. Kh1 {[%clk 00:51:47]} {[%emt 00:04:03]} Qe8 {[%clk 00:20:54]}
{[%emt 00:04:56]} 22. Nf3 {[%clk 00:23:45]} {[%emt 00:28:32]} Bd8 {[%clk
00:20:06]} {[%emt 00:01:18]} 23. Ba2 {[%clk 00:19:19]} {[%emt 00:04:57]} Rxb2
{[%clk 00:18:31]} {[%emt 00:02:05]} 24. Qc1 {[%clk 00:15:05]} {[%emt 00:04:44]}
Re2 {[%clk 00:15:27]} {[%emt 00:03:33]} 25. Nxf4 {[%clk 00:10:38]} {[%emt
00:04:57]} Rxe4 {[%clk 00:15:46]} {[%emt 00:00:11]} 26. Bd5 {[%clk 00:09:15]}
{[%emt 00:01:53]} Re3 {[%clk 00:12:44]} {[%emt 00:03:32]} 27. c4 {[%clk
00:07:04]} {[%emt 00:02:41]} Rxa3 {[%clk 00:13:05]} {[%emt 00:00:09]} 28. Qxa3
{[%clk 00:07:26]} {[%emt 00:00:08]} Qe7 {[%clk 00:11:33]} {[%emt 00:02:02]} 29.
h4 {[%clk 00:05:14]} {[%emt 00:02:43]} Nc6 {[%clk 00:07:00]} {[%emt 00:05:03]}
30. Ng5 {[%clk 00:01:56]} {[%emt 00:03:48]} Ne5 {[%clk 00:06:31]} {[%emt
00:00:58]} 31. g3 {[%clk 00:02:01]} {[%emt 00:00:25]} Ng4 {[%clk 00:01:47]}
{[%emt 00:05:14]} 32. Nxf7 {[%clk 00:00:49]} {[%emt 00:01:42]} Rxf7 {[%clk
00:02:10]} {[%emt 00:00:06]} 33. Nxg6 {[%emt 00:00:33]} Qe2 {[%clk 00:01:32]}
{[%emt 00:01:06]} 34. Bxf7+ {[%clk 00:01:07]} {[%emt 00:00:11]} Kg7 {[%clk
00:01:56]} {[%emt 00:00:06]} 35. Qc3+ {[%clk 00:00:33]} {[%emt 00:01:04]} Bf6
{[%clk 00:02:15]} {[%emt 00:00:11]} 0-1

[Event "Schack-SM 2023: Mastarklassen-elit"]
[Site "Helsingborg Arena, Mellersta Stenbocksgatan 14, Helsingborg, Sweden"]
[Date "2023.07.02"]
[Round "2.4"]
[White "Olund, Joar"]
[Black "Crevatin, Leo"]
[Result "1/2-1/2"]
[TimeControl "90 minutes for 40 moves + 30 minutes for the rest of games + 30 seconds per move from move one."]
[WhiteTitle "FM"]
[BlackTitle "FM"]
[WhiteElo "2399"]
[BlackElo "2265"]

1. d4 {[%clk 01:22:55]} {[%emt 00:08:05]} d5 {[%clk 01:30:39]} {[%emt
00:00:21]} 2. Bf4 {[%clk 01:23:22]} {[%emt 00:00:03]} Nf6 {[%clk 01:30:34]}
{[%emt 00:00:34]} 3. e3 {[%clk 01:23:50]} {[%emt 00:00:03]} c5 {[%clk
01:30:46]} {[%emt 00:00:16]} 4. c3 {[%clk 01:24:18]} {[%emt 00:00:05]} Nc6
{[%clk 01:31:08]} {[%emt 00:00:08]} 5. Nd2 {[%clk 01:24:46]} {[%emt 00:00:02]}
Bf5 {[%clk 01:31:11]} {[%emt 00:00:25]} 6. Qb3 {[%clk 01:25:01]} {[%emt
00:00:16]} Qd7 {[%clk 01:31:29]} {[%emt 00:00:11]} 7. Ngf3 {[%clk 01:25:27]}
{[%emt 00:00:05]} c4 {[%clk 01:31:30]} {[%emt 00:00:29]} 8. Qd1 {[%clk
01:25:56]} {[%emt 00:00:02]} b5 {[%clk 01:31:42]} {[%emt 00:00:17]} 9. Be2
{[%clk 01:24:42]} {[%emt 00:01:44]} e6 {[%clk 01:29:42]} {[%emt 00:02:29]} 10.
Ne5 {[%clk 01:19:35]} {[%emt 00:05:38]} Nxe5 {[%clk 01:28:59]} {[%emt
00:01:13]} 11. Bxe5 {[%clk 01:20:02]} {[%emt 00:00:03]} Ne4 {[%clk 01:21:15]}
{[%emt 00:08:14]} 12. a3 {[%clk 01:09:22]} {[%emt 00:11:10]} a5 {[%clk
01:09:58]} {[%emt 00:11:46]} 13. O-O {[%clk 01:04:26]} {[%emt 00:05:27]} Nxd2
{[%clk 01:05:23]} {[%emt 00:05:05]} 14. Qxd2 {[%clk 01:02:29]} {[%emt
00:02:27]} Bg6 {[%clk 00:54:46]} {[%emt 00:11:06]} 15. Bd1 {[%clk 00:59:28]}
{[%emt 00:03:32]} f6 {[%clk 00:52:49]} {[%emt 00:02:27]} 16. Bg3 {[%clk
00:59:50]} {[%emt 00:00:08]} Bd6 {[%clk 00:45:13]} {[%emt 00:08:06]} 17. Bc2
{[%clk 00:59:40]} {[%emt 00:00:40]} Bxc2 {[%clk 00:44:20]} {[%emt 00:01:22]} 18.
Qxc2 {[%clk 00:59:21]} {[%emt 00:00:49]} Bxg3 {[%clk 00:42:48]} {[%emt
00:02:02]} 19. hxg3 {[%clk 00:59:45]} {[%emt 00:00:07]} O-O {[%clk 00:40:33]}
{[%emt 00:02:44]} 20. e4 {[%clk 00:59:44]} {[%emt 00:00:31]} dxe4 {[%clk
00:36:38]} {[%emt 00:04:26]} 21. Qxe4 {[%clk 01:00:10]} {[%emt 00:00:04]} a4
{[%clk 00:32:09]} {[%emt 00:04:59]} 22. Rfe1 {[%clk 00:59:43]} {[%emt
00:00:57]} Rfe8 {[%clk 00:31:27]} {[%emt 00:01:11]} 23. Re3 {[%clk 00:59:29]}
{[%emt 00:00:45]} Qd5 {[%clk 00:30:41]} {[%emt 00:01:14]} 24. Rae1 {[%clk
00:59:42]} {[%emt 00:00:19]} Qxe4 {[%clk 00:27:44]} {[%emt 00:03:27]} 25. Rxe4
{[%clk 01:00:11]} Kf7 {[%clk 00:25:57]} {[%emt 00:02:17]} 26. g4 {[%clk
01:00:39]} {[%emt 00:00:02]} g5 {[%clk 00:16:22]} {[%emt 00:10:04]} 27. g3
{[%clk 00:56:14]} {[%emt 00:04:56]} Rad8 {[%clk 00:15:23]} {[%emt 00:01:28]} 28.
Kg2 {[%clk 00:56:27]} {[%emt 00:00:17]} h6 {[%clk 00:13:47]} {[%emt 00:02:07]}
29. f4 {[%clk 00:56:33]} {[%emt 00:00:24]} gxf4 {[%clk 00:07:38]} {[%emt
00:06:39]} 30. gxf4 {[%clk 00:56:27]} {[%emt 00:00:35]} h5 {[%clk 00:03:08]}
{[%emt 00:05:00]} 31. f5 {[%clk 00:55:23]} {[%emt 00:01:35]} Rg8 {[%clk
00:00:53]} {[%emt 00:02:45]} 32. fxe6+ {[%clk 00:49:06]} {[%emt 00:06:47]} Ke7
{[%clk 00:01:18]} {[%emt 00:00:04]} 33. Kf3 {[%clk 00:49:07]} {[%emt 00:00:29]}
Rxg4 {[%clk 00:01:09]} {[%emt 00:00:39]} 34. Rxg4 {[%clk 00:48:29]} {[%emt
00:01:09]} hxg4+ {[%clk 00:01:37]} {[%emt 00:00:02]} 35. Kxg4 {[%clk 00:48:53]}
{[%emt 00:00:06]} Rd5 {[%clk 00:01:44]} {[%emt 00:00:20]} 36. Kf4 {[%clk
00:48:57]} {[%emt 00:00:28]} Rh5 {[%clk 00:00:59]} {[%emt 00:01:14]} 37. Re2
{[%clk 00:48:25]} {[%emt 00:01:04]} Rg5 {[%clk 00:00:36]} {[%emt 00:00:52]} 38.
Kf3 {[%clk 00:46:01]} {[%emt 00:02:54]} Rf5+ {[%clk 00:00:34]} {[%emt
00:00:33]} 39. Kg4 {[%clk 00:40:05]} {[%emt 00:06:26]} Rg5+ {[%clk 00:00:54]}
{[%emt 00:00:10]} 40. Kh4 {[%clk 00:39:38]} {[%emt 00:00:57]} Rd5 {[%clk
00:00:37]} {[%emt 00:00:45]} 41. Kg4 {[%clk 00:38:29]} {[%emt 00:01:41]} Rg5+
{[%clk 00:00:53]} {[%emt 00:00:14]} 42. Kf4 {[%clk 00:35:22]} {[%emt 00:03:36]}
Rh5 {[%clk 00:00:40]} {[%emt 00:00:43]} 43. Kf3 {[%clk 00:28:30]} {[%emt
00:07:23]} Rf5+ {[%clk 00:27:50]} {[%emt 00:03:20]} 44. Kg4 {[%clk 00:53:53]}
1/2-1/2